bitfinex-derivatives/quotes_BTCF0:USTF0_20240820
["timestamp","ask_amount","ask_price","bid_price","bid_amount"]
[1724188197686,0.3608,59119.0,59116.0,0.084575]
[1724188197971,0.00279219,59118.0,59117.0,0.084574]
[1724188199564,0.01679219,59118.0,59117.0,0.085574]
[1724188203372,0.0830273,59118.0,59117.0,0.085574]
[1724188203573,0.0830273,59118.0,59117.0,0.07919928]
[1724188204275,0.00279219,59118.0,59117.0,0.07819928]
[1724188204575,0.01679219,59118.0,59117.0,0.07919928]
[1724188204778,0.014,59118.0,59117.0,0.07919928]
[1724188204972,0.01679218,59118.0,59117.0,0.07919928]
[1724188205178,0.014,59118.0,59117.0,0.07919928]
[1724188205372,0.01679217,59118.0,59117.0,0.07919928]
[1724188206076,0.00279217,59118.0,59117.0,0.07819928]
[1724188206264,0.01679217,59118.0,59117.0,0.07919928]
[1724188208170,0.00279217,59118.0,59117.0,0.07819928]
[1724188208373,0.01679217,59118.0,59117.0,0.07919928]
[1724188208880,0.3608,59119.0,59118.0,0.084573]
[1724188209076,0.36359217,59119.0,59118.0,0.084573]
[1724188211177,0.37759217,59119.0,59118.0,0.085573]
[1724188212704,0.45752124,59119.0,59118.0,0.085573]
[1724188212989,0.46031341,59119.0,59118.0,0.085573]
[1724188214391,0.37759217,59119.0,59118.0,0.085573]
[1724188215382,0.39100884,59119.0,59118.0,0.084573]
[1724188215691,0.40500884,59119.0,59118.0,0.085573]
[1724188216378,0.084573,59118.0,59109.0,0.00025371]
[1724188216677,0.084586,59109.0,59093.0,0.05059082]
[1724188216878,0.084586,59109.0,59091.0,0.13520082]
[1724188216879,0.4427931,59095.0,59091.0,0.13520082]
[1724188217083,0.0857859,59094.0,59087.0,0.084617]
[1724188217383,0.04975331,59088.0,59082.0,0.3608]
[1724188217576,0.00279342,59087.0,59086.0,0.376919]
[1724188218479,0.04875317,59088.0,59087.0,0.084617]
[1724188219074,0.05154642,59088.0,59087.0,0.084617]
[1724188220287,0.41334642,59088.0,59087.0,0.096617]
[1724188220691,0.41055317,59088.0,59087.0,0.096617]
[1724188220880,0.41334681,59088.0,59087.0,0.096617]
[1724188221285,0.41334681,59088.0,59087.0,0.012]
[1724188221879,0.05254681,59088.0,59087.0,0.012]
[1724188222084,0.41334681,59088.0,59087.0,0.012]
[1724188222387,0.41834681,59088.0,59087.0,0.001]
[1724188223085,1.27731364,59088.0,59087.0,0.001]
[1724188223391,0.084618,59087.0,59079.0,0.084628]
[1724188223582,0.3608,59082.0,59079.0,0.084628]
[1724188223784,0.00279364,59081.0,59079.0,0.084628]
[1724188224291,0.00012042,59080.0,59079.0,0.084628]
[1724188224485,0.00291406,59080.0,59079.0,0.084628]
[1724188224885,0.00291406,59080.0,59075.0,0.084634]
[1724188225081,0.00279364,59079.0,59075.0,0.084634]
[1724188225477,0.00012042,59080.0,59079.0,0.00120636]
[1724188225983,0.00012042,59080.0,59074.0,0.00025371]
[1724188225984,0.00291448,59080.0,59074.0,0.00025371]
[1724188226183,0.00279405,59079.0,59075.0,0.092634]
[1724188226493,0.00112042,59080.0,59075.0,0.092634]
[1724188226686,0.00012042,59080.0,59079.0,0.004]
[1724188226881,0.00291447,59080.0,59079.0,0.004]
[1724188227186,1.27151447,59080.0,59074.0,0.00025371]
[1724188227392,0.3608,59075.0,59074.0,0.00025371]
[1724188227692,0.36359405,59075.0,59074.0,0.00025371]
[1724188228390,0.35659405,59075.0,59074.0,0.00025371]
[1724188228792,0.3538,59075.0,59074.0,0.00025371]
[1724188228985,1.18411861,59075.0,59074.0,0.007167]
[1724188229387,0.084642,59070.0,59059.0,0.2923]
[1724188229586,0.3608,59065.0,59059.0,0.2923]
[1724188229891,0.3608,59065.0,59059.0,0.30374709]
[1724188230195,0.3608,59065.0,59054.0,0.3608]
[1724188230499,0.36105394,59065.0,59062.0,0.084653]
[1724188231184,0.36105394,59065.0,59054.0,0.00025394]
[1724188231393,0.3608,59057.0,59054.0,0.00025394]
[1724188232594,0.00015102,59056.0,59054.0,0.00025394]
[1724188234598,0.00115102,59056.0,59054.0,0.00025394]
[1724188235100,0.01115102,59056.0,59054.0,0.00025394]
[1724188235394,0.01115102,59056.0,59054.0,0.08491794]
[1724188236927,0.01115102,59056.0,59055.0,0.084663]
[1724188237595,0.00015102,59056.0,59055.0,0.057663]
[1724188239191,0.00015102,59056.0,59054.0,0.00025394]
[1724188239396,0.084678,59045.0,59040.0,0.084684]
[1724188239698,0.084678,59045.0,59028.0,0.0847]
[1724188239699,0.3608,59039.0,59028.0,0.36176]
[1724188239900,0.3608,59039.0,59028.0,0.3608]
[1724188240299,0.3608,59033.0,59028.0,0.084701]
[1724188240596,0.3608,59033.0,59025.0,0.00025394]
[1724188240597,0.00014718,59032.0,59025.0,0.00025394]
[1724188242703,0.00014718,59032.0,59030.0,0.084698]
[1724188243307,0.00014718,59032.0,59026.0,0.084704]
[1724188243493,0.3608,59027.0,59026.0,0.084704]
[1724188244506,0.3608,59027.0,59025.0,0.00025394]
[1724188245300,0.445504,59027.0,59025.0,0.00025394]
[1724188245797,0.3608,59027.0,59025.0,0.00025394]
[1724188248008,0.3608,59027.0,59026.0,0.084705]
[1724188249607,0.084705,59026.0,59025.0,0.00025394]
[1724188249915,0.084705,59026.0,59005.0,0.377033]
[1724188249916,0.50824,59026.0,59005.0,0.377033]
[1724188250212,0.3608,59012.0,59002.0,0.11386]
[1724188250402,0.00016884,59011.0,59002.0,0.1129]
[1724188250599,0.00016884,59011.0,59010.0,0.084728]
[1724188253716,0.00025416,59016.0,59015.0,0.08472]
[1724188254216,0.00025416,59016.0,59005.0,0.00017097]
[1724188254414,0.3608,59012.0,59005.0,0.00017097]
[1724188254709,0.0001357,59011.0,59005.0,0.00017097]
[1724188255308,0.0001357,59011.0,59010.0,0.084728]
[1724188256816,1e-08,59011.0,59010.0,0.593128]
[1724188257707,1e-08,59011.0,59010.0,0.084728]
[1724188261217,1e-08,59011.0,59010.0,0.445528]
[1724188261511,1e-08,59011.0,59010.0,0.530256]
[1724188261712,1e-08,59011.0,59010.0,1.038656]
[1724188261917,0.00025416,59016.0,59010.0,1.038656]
[1724188261918,0.3608,59024.0,59015.0,0.08472]
[1724188262116,0.3608,59024.0,59023.0,0.084709]
[1724188262416,0.36236001,59034.0,59023.0,0.084709]
[1724188262610,0.3608,59034.0,59033.0,0.084695]
[1724188262812,0.3608,59034.0,59021.0,0.1149]
[1724188263005,0.00025416,59033.0,59022.0,0.00025416]
[1724188263217,0.00025416,59033.0,59032.0,0.084696]
[1724188266421,0.084697,59032.0,59029.0,0.084699]
[1724188267418,0.084697,59032.0,59030.0,0.084698]
[1724188268121,0.084697,59032.0,59031.0,0.084697]
[1724188268728,0.36105416,59033.0,59032.0,0.084696]
[1724188270527,0.084723,59013.0,59004.0,0.084736]
[1724188270723,0.084723,59013.0,58989.0,0.084757]
[1724188270724,0.06613286,59010.0,59005.0,0.084735]
[1724188270913,0.3608,59006.0,59005.0,0.084735]
[1724188271112,0.3608,59006.0,58994.0,0.3608]
[1724188271520,0.3608,59006.0,59005.0,0.084735]
[1724188271715,0.3608,59006.0,58998.0,0.00017097]
[1724188271716,0.3608,59006.0,59000.0,0.084742]
[1724188271920,0.3608,59006.0,59001.0,0.08487134]
[1724188272223,0.3608,59006.0,59001.0,0.00013134]
[1724188272821,0.06638702,59009.0,59001.0,0.36093134]
[1724188272822,0.00025416,59009.0,59001.0,0.36093134]
[1724188273031,0.00025416,59009.0,58998.0,0.00017097]
[1724188273032,0.084739,59002.0,58998.0,0.00017097]
[1724188273219,0.50844,59008.0,58976.0,0.3608]
[1724188273220,0.2923,58990.0,58976.0,0.3608]
[1724188273418,0.3608,58985.0,58976.0,0.084776]
[1724188273720,0.3608,58985.0,58973.0,0.3608]
[1724188274222,0.00013134,58984.0,58973.0,0.44558]
[1724188274540,0.00013134,58984.0,58973.0,0.3608]
[1724188275422,0.00013134,58984.0,58976.0,0.084776]
[1724188275619,0.00013134,58984.0,58980.0,0.3608]
[1724188276530,0.00013134,58984.0,58980.0,4.1308]
[1724188276920,0.3608,58992.0,58980.0,4.1308]
[1724188277229,0.3608,58992.0,58989.0,0.084757]
[1724188277926,0.00025416,58996.0,58991.0,0.3608]
[1724188278128,0.00025416,58996.0,58988.0,0.36105416]
[1724188278433,0.00025416,58996.0,58988.0,0.08501316]
[1724188278623,0.00025416,58996.0,58989.0,0.084757]
[1724188278829,0.00025416,58996.0,58990.0,0.084756]
[1724188279131,0.3608,58995.0,58991.0,0.084755]
[1724188279328,0.00025416,58996.0,58991.0,0.084755]
[1724188279524,0.3608,58995.0,58991.0,0.084755]
[1724188279919,0.00025416,58996.0,58992.0,0.084753]
[1724188280124,0.3608,58994.0,58992.0,0.084753]
[1724188280622,0.00025416,58996.0,58993.0,0.3608]
[1724188280925,0.00025416,58996.0,58995.0,0.084749]
[1724188284526,0.00025416,58996.0,58993.0,0.3608]
[1724188284527,0.3608,59002.0,59001.0,0.08474]
[1724188285329,0.36359766,59002.0,59001.0,0.08474]
[1724188285728,0.00025416,59007.0,59006.0,0.084733]
[1724188286028,0.00025416,59007.0,59006.0,0.445533]
[1724188286436,0.00025416,59007.0,59006.0,0.953933]
[1724188287037,0.3608,59021.0,59019.0,0.084714]
[1724188287226,0.1155,59024.0,59019.0,0.084714]
[1724188287431,0.3608,59020.0,59015.0,0.084719]
[1724188287633,0.00279673,59019.0,59009.0,0.3663]
[1724188287838,0.00279673,59018.0,59009.0,0.3663]
[1724188288033,0.36105416,59020.0,59018.0,0.084716]
[1724188288229,0.0027969,59019.0,59013.0,0.3608]
[1724188288529,0.0027969,59018.0,59017.0,0.084717]
[1724188288724,0.00025416,59020.0,59019.0,0.084715]
[1724188292530,0.3608,59033.0,59032.0,0.084696]
[1724188292725,0.36359621,59033.0,59032.0,0.084696]
[1724188293746,0.3608,59033.0,59032.0,0.084696]
[1724188293925,0.36359612,59033.0,59032.0,0.084696]
[1724188295640,0.00025416,59038.0,59032.0,0.084696]
[1724188295641,0.00025416,59038.0,59037.0,0.084689]
[1724188297340,0.00025416,59038.0,59037.0,0.445489]
[1724188297961,0.445471,59050.0,59037.0,0.445489]
[1724188297962,0.3608,59050.0,59037.0,1.26896]
[1724188298142,0.3626,59060.0,59046.0,0.084675]
[1724188298361,0.3608,59060.0,59058.0,0.084657]
[1724188298535,0.3608,59060.0,59059.0,0.084657]
[1724188299952,0.00025416,59065.0,59064.0,0.08465]
[1724188301436,0.90817416,59065.0,59054.0,0.00025416]
[1724188301641,0.3608,59060.0,59058.0,0.084659]
[1724188301838,0.3608,59060.0,59059.0,0.084657]
[1724188302052,0.3608,59064.0,59059.0,0.084657]
[1724188302241,0.3608,59064.0,59054.0,0.00025416]
[1724188302439,0.3608,59064.0,59054.0,0.36105416]
[1724188302847,0.3608,59064.0,59061.0,0.084653]
[1724188303042,0.3608,59064.0,59063.0,0.084651]
[1724188306247,0.00025416,59065.0,59064.0,0.08465]
[1724188307851,0.00025416,59065.0,59059.0,0.3608]
[1724188308063,0.3608,59061.0,59054.0,0.00025416]
[1724188308363,0.3608,59055.0,59054.0,0.00025416]
[1724188309057,0.3608,59055.0,59054.0,0.08491816]
[1724188311774,0.1177,59064.0,59058.0,0.084658]
[1724188311957,0.3608,59061.0,59058.0,0.084658]
[1724188312566,0.3608,59061.0,59054.0,0.36615416]
[1724188312757,0.00025416,59065.0,59054.0,0.36615416]
[1724188312954,0.00025416,59065.0,59055.0,0.084663]
[1724188313263,0.3608,59061.0,59055.0,0.084663]
[1724188313463,0.3608,59061.0,59060.0,0.084656]
[1724188313764,0.00025416,59065.0,59064.0,0.08465]
[1724188319062,0.08490316,59065.0,59064.0,0.08465]
[1724188320661,0.00025416,59065.0,59064.0,0.08465]
[1724188321092,0.06622178,59065.0,59064.0,0.08465]
[1724188321462,0.00025416,59065.0,59064.0,0.08465]
[1724188321668,0.06626999,59065.0,59064.0,0.08465]
[1724188322269,0.00025416,59065.0,59064.0,0.08465]
[1724188323871,0.084651,59064.0,59061.0,0.084654]
[1724188324075,0.084656,59060.0,59058.0,0.084658]
[1724188324261,0.44343883,59059.0,59058.0,0.084658]
[1724188324467,0.44343883,59059.0,59038.0,0.2927]
[1724188324760,0.44343883,59059.0,59043.0,0.08468]
[1724188324761,0.06615799,59044.0,59043.0,0.08468]
[1724188324969,0.06615799,59044.0,59038.0,0.2927]
[1724188324970,0.08269748,59047.0,59046.0,0.084676]
[1724188326067,0.3608,59048.0,59047.0,0.084674]
[1724188326269,0.38825011,59048.0,59047.0,0.084674]
[1724188326570,0.3608,59048.0,59047.0,0.084674]
[1724188326969,0.06615526,59050.0,59049.0,0.084672]
[1724188327164,0.42695632,59050.0,59049.0,0.377372]
[1724188327364,0.3608,59050.0,59049.0,0.084672]
[1724188327569,1.26884,59050.0,59041.0,0.00025416]
[1724188327771,0.3608,59042.0,59041.0,0.00025416]
[1724188329472,0.86892,59042.0,59041.0,0.00025416]
[1724188330365,0.87171601,59042.0,59041.0,0.00025416]
[1724188330876,0.36359601,59042.0,59041.0,0.00025416]
[1724188331076,1.35639801,59042.0,59041.0,0.00025416]
[1724188331376,0.48019601,59042.0,59024.0,0.2927]
[1724188331565,0.3608,59032.0,59024.0,0.2927]
[1724188331767,0.36359601,59032.0,59024.0,0.2927]
[1724188331970,0.36359601,59032.0,59031.0,0.234497]
[1724188332473,0.36377427,59032.0,59031.0,0.234497]
[1724188332675,0.00297427,59032.0,59031.0,0.234497]
[1724188332980,0.0029745,59032.0,59031.0,0.234497]
[1724188335784,0.3637745,59032.0,59031.0,0.234497]
[1724188336872,0.36377458,59032.0,59031.0,0.234497]
[1724188340998,0.36097826,59032.0,59031.0,0.234497]
[1724188341276,0.36377465,59032.0,59031.0,0.234497]
[1724188341675,0.36097826,59032.0,59031.0,0.234497]
[1724188341981,0.36377467,59032.0,59031.0,0.234497]
[1724188344875,0.04968215,59037.0,59031.0,0.742697]
[1724188345103,0.04968215,59037.0,59036.0,0.2927]
[1724188345104,0.00025416,59037.0,59036.0,0.2927]
[1724188345279,0.00025416,59037.0,59036.0,0.37739]
[1724188347479,0.00025416,59037.0,59036.0,0.88555]
[1724188349587,0.00025416,59037.0,59036.0,0.37739]
[1724188350390,0.00025416,59037.0,59036.0,0.08469]
[1724188350585,0.00304991,59037.0,59036.0,0.08469]
[1724188350787,0.00025416,59037.0,59036.0,0.08469]
[1724188352488,0.0030499,59037.0,59036.0,0.08469]
[1724188352915,0.06602087,59040.0,59036.0,1.05796]
[1724188353088,0.04962383,59042.0,59039.0,0.2927]
[1724188353287,0.04962383,59042.0,59041.0,0.445483]
[1724188353501,0.3608,59052.0,59041.0,0.3608]
[1724188353689,0.00279544,59051.0,59041.0,0.3608]
[1724188353901,0.06615931,59046.0,59041.0,0.3608]
[1724188354096,0.00279547,59045.0,59041.0,0.3608]
[1724188354396,0.00279547,59044.0,59043.0,0.08468]
[1724188354593,0.00279547,59044.0,59043.0,0.23448]
[1724188354792,0.76359547,59044.0,59036.0,0.00088]
[1724188354991,0.76359547,59044.0,59022.0,0.42806111]
[1724188354992,0.3608,59037.0,59029.0,0.084699]
[1724188355192,0.4269464,59030.0,59029.0,0.084699]
[1724188355395,0.42974187,59030.0,59029.0,0.084699]
[1724188355595,0.06894187,59030.0,59029.0,0.084699]
[1724188355790,0.36359547,59030.0,59029.0,0.084699]
[1724188356190,0.36359547,59030.0,59025.0,0.084705]
[1724188356491,0.06614482,59027.0,59025.0,0.084705]
[1724188356692,0.00279547,59026.0,59025.0,0.084705]
[1724188357300,0.06894029,59026.0,59025.0,0.084705]
[1724188358399,0.00279547,59026.0,59025.0,0.084705]
[1724188360092,0.06894029,59026.0,59025.0,0.084705]
[1724188360287,0.00279547,59026.0,59025.0,0.084705]
[1724188361703,0.00279645,59026.0,59025.0,0.084705]
[1724188362200,0.05240825,59026.0,59025.0,0.084705]
[1724188362397,0.00279645,59026.0,59025.0,0.084705]
[1724188362703,0.05240789,59026.0,59025.0,0.084705]
[1724188362899,0.06639898,59035.0,59031.0,0.169394]
[1724188363096,0.04961695,59033.0,59032.0,0.084696]
[1724188363400,0.00279593,59033.0,59032.0,0.084696]
[1724188363798,0.05241266,59033.0,59032.0,0.084696]
[1724188365504,0.05241256,59033.0,59032.0,0.084696]
[1724188365702,0.00279583,59033.0,59032.0,1.077592]
[1724188366003,0.00025416,59035.0,59034.0,0.084693]
[1724188366495,0.00025416,59035.0,59034.0,1.077546]
[1724188366696,0.04961673,59040.0,59039.0,0.084686]
[1724188366905,0.05241244,59040.0,59039.0,0.377386]
[1724188367600,0.05241244,59040.0,59039.0,0.738186]
[1724188367801,0.00279571,59040.0,59039.0,0.738186]
[1724188369802,0.00279571,59040.0,59039.0,0.822872]
[1724188370593,0.00279571,59040.0,59039.0,0.738186]
[1724188370796,0.00279571,59040.0,59039.0,0.377386]
[1724188376303,0.87171571,59040.0,59039.0,0.084686]
[1724188376504,1.27171571,59040.0,59039.0,0.084686]
[1724188377002,1.33786053,59040.0,59039.0,0.084686]
[1724188377403,1.33786071,59040.0,59039.0,0.084686]
[1724188377610,1.27171589,59040.0,59035.0,0.084691]
[1724188377808,0.06613568,59038.0,59035.0,0.084691]
[1724188378009,0.06893157,59037.0,59035.0,0.084691]
[1724188378310,0.00279589,59036.0,59035.0,0.084691]
[1724188381229,0.06613568,59039.0,59038.0,0.084687]
[1724188381405,0.04959314,59041.0,59040.0,0.084684]
[1724188381717,0.0027956,59041.0,59040.0,3.939368]
[1724188381909,0.36105416,59045.0,59044.0,0.169358]
[1724188382516,0.36105416,59045.0,59044.0,0.084679]
[1724188383913,1.26913416,59045.0,59044.0,0.084679]
[1724188384112,1.26913416,59045.0,59035.0,0.00025416]
[1724188384316,0.04959265,59037.0,59036.0,0.08469]
[1724188384510,0.06612353,59041.0,59037.0,0.084688]
[1724188384916,0.06612353,59041.0,59037.0,0.2927]
[1724188385116,0.41039337,59038.0,59035.0,0.00025416]
[1724188385310,0.52817735,59036.0,59028.0,0.0847]
[1724188385617,0.3608,59029.0,59028.0,0.0847]
[1724188385918,0.3608,59029.0,59025.0,0.084706]
[1724188386114,0.06610623,59028.0,59025.0,0.084706]
[1724188386420,0.3608,59029.0,59027.0,0.2927]
[1724188386918,0.04958763,59028.0,59027.0,0.2927]
[1724188387121,0.04958763,59029.0,59028.0,0.084702]
[1724188387618,0.00025416,59032.0,59029.0,0.0847]
[1724188387619,0.04958763,59030.0,59029.0,0.0847]
[1724188387827,0.04984179,59032.0,59031.0,0.084697]
[1724188388922,0.00025416,59032.0,59031.0,0.084697]
[1724188389416,0.04984179,59032.0,59031.0,0.084697]
[1724188389720,0.00025416,59032.0,59031.0,0.084697]
[1724188390022,0.04984179,59032.0,59031.0,0.084697]
[1724188390222,0.00025416,59032.0,59031.0,0.084697]
[1724188391818,0.04989368,59032.0,59031.0,0.084697]
[1724188392023,0.00025416,59032.0,59031.0,0.084697]
[1724188393615,0.06636039,59032.0,59031.0,0.084697]
[1724188393820,0.00025416,59032.0,59031.0,0.084697]
[1724188394018,0.00305027,59032.0,59031.0,0.084697]
[1724188396418,0.00305022,59032.0,59031.0,0.084697]
[1724188399425,0.06915645,59032.0,59031.0,0.084697]
[1724188400130,0.00305022,59032.0,59031.0,0.084697]
[1724188400431,0.06915645,59032.0,59031.0,0.084697]
[1724188400823,0.06636039,59032.0,59031.0,0.084697]
[1724188401130,0.06915644,59032.0,59031.0,0.084697]
[1724188404222,0.00305021,59032.0,59031.0,0.084697]
[1724188406428,0.00305022,59032.0,59031.0,0.084697]
[1724188407730,0.08268735,59039.0,59038.0,0.084687]
[1724188408036,0.00279582,59039.0,59038.0,0.169374]
[1724188408333,0.06628055,59047.0,59045.0,0.084677]
[1724188408625,0.06628055,59050.0,59049.0,0.084672]
[1724188408831,0.06628055,59050.0,59049.0,0.377372]
[1724188409020,0.08268735,59054.0,59049.0,0.377372]
[1724188409021,0.06628055,59052.0,59051.0,0.084669]
[1724188409225,0.06653471,59055.0,59051.0,0.3608]
[1724188409533,0.06653471,59055.0,59054.0,0.084664]
[1724188409534,0.00025416,59055.0,59054.0,0.084664]
[1724188411021,0.04969769,59061.0,59060.0,0.084656]
[1724188411226,0.04969769,59063.0,59060.0,0.3608]
[1724188411429,0.04969769,59066.0,59065.0,0.084649]
[1724188411730,0.04969769,59066.0,59065.0,0.377349]
[1724188412329,0.04969769,59067.0,59066.0,0.084647]
[1724188412632,0.3608,59068.0,59067.0,0.084646]
[1724188412633,0.41049769,59068.0,59067.0,0.084646]
[1724188413131,0.3608,59068.0,59067.0,0.084646]
[1724188415124,0.00025416,59071.0,59070.0,0.084641]
[1724188415326,0.00025416,59071.0,59065.0,0.2927]
[1724188415628,0.00025416,59071.0,59065.0,0.377349]
[1724188415629,0.3608,59066.0,59065.0,0.377349]
[1724188415829,0.3608,59066.0,59065.0,0.2927]
[1724188416235,0.04995185,59071.0,59068.0,0.084644]
[1724188416236,0.3608,59069.0,59068.0,0.084644]
[1724188416725,0.00025416,59071.0,59070.0,0.084641]
[1724188419327,0.00025416,59071.0,59070.0,0.09554005]
[1724188419930,0.00025416,59071.0,59065.0,0.65438]
[1724188419931,0.59277516,59071.0,59065.0,0.00088]
[1724188420132,0.3608,59066.0,59060.0,0.00025416]
[1724188420328,0.00279467,59065.0,59060.0,0.00025416]
[1724188420523,0.3608,59066.0,59061.0,0.2927]
[1724188420737,0.00279475,59065.0,59061.0,0.2927]
[1724188420933,0.00279475,59064.0,59061.0,0.2927]
[1724188421131,0.00279475,59063.0,59062.0,0.084653]
[1724188423140,0.1114,59065.0,59063.0,0.084651]
[1724188423335,0.00279478,59064.0,59063.0,0.084651]
[1724188424725,0.1114,59065.0,59064.0,0.08465]
[1724188424943,0.1114,59065.0,59060.0,0.00025416]
[1724188424944,0.3608,59066.0,59061.0,0.2927]
[1724188425241,0.01073214,59068.0,59067.0,0.084646]
[1724188425536,0.01073214,59068.0,59067.0,0.738146]
[1724188425740,0.00025416,59071.0,59070.0,0.084641]
[1724188425940,0.00304834,59071.0,59070.0,0.084641]
[1724188427643,0.00025416,59071.0,59070.0,0.084641]
[1724188429232,0.00025416,59071.0,59070.0,0.09556101]
[1724188437329,0.04995185,59071.0,59070.0,0.09556101]
[1724188438344,0.00025416,59071.0,59070.0,0.09556101]
[1724188441141,0.36105416,59071.0,59070.0,0.09556101]
[1724188441340,0.00025416,59071.0,59070.0,0.09556101]
[1724188445843,0.06658505,59071.0,59070.0,0.18020201]
[1724188446150,0.00025416,59071.0,59070.0,0.18020201]
[1724188446647,0.06658685,59071.0,59070.0,0.18020201]
[1724188447360,0.06658533,59071.0,59070.0,0.18020201]
[1724188448246,0.00025416,59071.0,59070.0,0.18020201]
[1724188449239,0.00304831,59071.0,59070.0,0.18020201]
[1724188449643,0.00025416,59071.0,59070.0,0.18020201]
[1724188450045,6.1e-07,59075.0,59074.0,0.084636]
[1724188450251,6.1e-07,59077.0,59076.0,0.084633]
[1724188450556,0.06632062,59082.0,59076.0,0.377333]
[1724188450749,0.06632062,59083.0,59077.0,0.1152]
[1724188451050,0.06632062,59085.0,59084.0,0.084621]
[1724188451256,0.06646702,59086.0,59083.0,0.084623]
[1724188451451,0.06646702,59086.0,59085.0,0.16924]
[1724188451643,0.00016874,59086.0,59085.0,0.16924]
[1724188454044,0.00016874,59086.0,59085.0,0.53004]
[1724188454853,0.00016874,59086.0,59085.0,1.03776]
[1724188455151,0.00016874,59086.0,59085.0,1.43776]
[1724188455947,0.06629828,59101.0,59100.0,0.084598]
[1724188456143,0.06618542,59101.0,59098.0,0.2927]
[1724188456452,0.2254,59105.0,59102.0,0.084596]
[1724188456645,0.06618586,59104.0,59103.0,0.084594]
[1724188456849,0.05218586,59104.0,59103.0,0.084594]
[1724188457154,0.2254,59105.0,59104.0,0.084593]
[1724188457541,0.2344,59105.0,59104.0,0.084593]
[1724188458350,0.2344,59105.0,59104.0,0.085593]
[1724188458351,0.2364,59105.0,59104.0,0.085593]
[1724188458753,0.011,59105.0,59104.0,0.378293]
[1724188467363,0.3608,59111.0,59110.0,0.084584]
[1724188467861,0.3608,59111.0,59110.0,0.377284]
[1724188468368,0.447292,59119.0,59117.0,0.084574]
[1724188468369,0.36272,59119.0,59117.0,0.084574]
[1724188468552,0.36359236,59118.0,59115.0,0.2927]
[1724188468751,0.00279236,59117.0,59115.0,0.2927]
[1724188468948,0.3608,59118.0,59115.0,0.2927]
[1724188469148,0.00279235,59117.0,59116.0,0.084576]
[1724188470365,0.01071372,59119.0,59118.0,0.084573]
[1724188470553,0.36359231,59119.0,59118.0,0.084573]
[1724188471866,0.3608,59119.0,59118.0,0.084573]
[1724188472057,0.36359231,59119.0,59118.0,0.084573]
[1724188472862,0.37759231,59119.0,59118.0,0.084573]
[1724188474064,0.46216331,59119.0,59117.0,0.084573]
[1724188474268,0.00279231,59118.0,59117.0,0.084573]
[1724188475361,0.00279231,59118.0,59112.0,0.00025373]
[1724188475362,0.91027231,59118.0,59112.0,0.00025373]
[1724188475564,0.44371396,59113.0,59106.0,0.08459]
[1724188475755,0.3608,59107.0,59106.0,0.08459]
[1724188475959,0.36359231,59107.0,59106.0,0.08459]
[1724188476961,0.37359231,59107.0,59106.0,0.08459]
[1724188477562,0.36359231,59107.0,59106.0,0.08459]
[1724188477865,0.37459231,59107.0,59106.0,0.08459]
[1724188478570,0.45730899,59107.0,59106.0,0.08459]
[1724188478973,0.37459231,59107.0,59106.0,0.08459]
[1724188479177,0.40501837,59107.0,59106.0,0.08459]
[1724188479769,0.41578494,59107.0,59106.0,0.08459]
[1724188479977,0.38635888,59107.0,59106.0,0.08459]
[1724188480178,0.41378347,59107.0,59106.0,0.08459]
[1724188480687,0.40178347,59107.0,59106.0,0.08459]
[1724188480984,0.02455888,59107.0,59106.0,0.08459]
[1724188481183,0.38535888,59107.0,59106.0,0.08459]
[1724188481878,0.37459231,59107.0,59106.0,0.08459]
[1724188482274,0.39101635,59107.0,59106.0,0.08459]
[1724188482476,0.40301635,59107.0,59106.0,0.08459]
[1724188483486,0.40101635,59107.0,59106.0,0.08459]
[1724188484484,0.40101696,59107.0,59106.0,0.08459]
[1724188484687,1.30857696,59107.0,59106.0,0.08459]
[1724188484985,1.30857696,59107.0,59086.0,0.18329579]
[1724188484986,1.30857696,59107.0,59084.0,0.00019673]
[1724188484987,0.084609,59093.0,59084.0,0.00019673]
[1724188485186,0.3608,59086.0,59084.0,0.00019673]
[1724188485376,0.3608,59086.0,59085.0,0.08462]
[1724188485577,0.36359375,59086.0,59085.0,0.08462]
[1724188486580,1.27131375,59086.0,59084.0,0.00019673]
[1724188486782,0.59343429,59085.0,59084.0,0.00519673]
[1724188487286,0.91055375,59085.0,59084.0,0.00519673]
[1724188487477,0.99328769,59085.0,59084.0,0.00519673]
[1724188487890,0.084627,59080.0,59061.0,0.3608]
[1724188488088,0.3608,59072.0,59071.0,0.08464]
[1724188488286,0.36359375,59072.0,59071.0,0.08464]
[1724188488498,0.35959375,59072.0,59071.0,0.08464]
[1724188488787,0.35973868,59072.0,59071.0,0.08464]
[1724188489185,0.00293868,59072.0,59071.0,0.08464]
[1724188489381,0.00293868,59072.0,59071.0,0.08664]
[1724188491288,0.36373868,59072.0,59071.0,0.08664]
[1724188491489,0.00293868,59072.0,59071.0,0.08664]
[1724188491791,0.36373868,59072.0,59071.0,0.08664]
[1724188492492,0.00014493,59072.0,59071.0,0.08664]
[1724188492988,0.00025373,59077.0,59076.0,0.084633]
[1724188493186,0.00025373,59077.0,59076.0,0.377333]
[1724188493988,0.00030553,59077.0,59076.0,0.377333]
[1724188494392,0.00530553,59077.0,59076.0,0.377333]
[1724188495291,0.00530553,59077.0,59076.0,0.38837754]
[1724188495792,0.00530553,59077.0,59076.0,0.89617754]
[1724188497693,0.33618986,59095.0,59088.0,0.084616]
[1724188497892,0.3635936,59089.0,59084.0,0.377321]
[1724188498095,0.084632,59077.0,59070.0,0.326]
[1724188498288,0.084632,59077.0,59067.0,0.238]
[1724188498289,0.3608,59071.0,59067.0,0.23704]
[1724188498494,0.448352,59077.0,59067.0,0.247987]
[1724188498695,0.3608,59072.0,59071.0,0.084639]
[1724188498990,0.001,59077.0,59073.0,0.084637]
[1724188499195,0.0027943,59076.0,59074.0,0.084635]
[1724188499396,0.0027943,59075.0,59074.0,0.084635]
[1724188499800,0.36105373,59078.0,59075.0,0.084633]
[1724188500102,0.00279411,59077.0,59075.0,0.084633]
[1724188500309,0.00279411,59076.0,59075.0,0.084633]
[1724188501199,0.00279411,59076.0,59071.0,0.08464]
[1724188501400,0.3608,59072.0,59071.0,0.08464]
[1724188501606,0.36359411,59072.0,59071.0,0.08464]
[1724188501800,0.36359434,59072.0,59071.0,0.08464]